[Event "*** SCC Grand Prix: Titled Tuesday Blitz"]
[Site "Chess.com"]
[Date "2020.09.29"]
[Round "6"]
[White "GMJustin"]
[Black "WiktoriaPOL"]
[Result "1-0"]
[WhiteElo "2267"]
[BlackElo "2039"]
[TimeControl "180+1"]
[EndTime "11:05:41 PDT"]
[Termination "GMJustin won on time"]

1. d4 {[%clk 0:02:46.9]} 1... Nf6 {[%clk 0:02:59.4]} 2. c4 {[%clk 0:02:46.3]}
2... g6 {[%clk 0:02:58.9]} 3. Nc3 {[%clk 0:02:45.3]} 3... Bg7 {[%clk 0:02:59]}
4. e4 {[%clk 0:02:42.7]} 4... d6 {[%clk 0:02:59]} 5. Be2 {[%clk 0:02:42.2]} 5...
O-O {[%clk 0:02:58.7]} 6. Nf3 {[%clk 0:02:42.3]} 6... e5 {[%clk 0:02:58.6]} 7.
O-O {[%clk 0:02:41.9]} 7... Nc6 {[%clk 0:02:58.1]} 8. d5 {[%clk 0:02:42.1]} 8...
Ne7 {[%clk 0:02:58.1]} 9. h3 {[%clk 0:02:42]} 9... Ne8 {[%clk 0:02:57.8]} 10.
Bg5 {[%clk 0:02:03.7]} 10... h6 {[%clk 0:02:57]} 11. Bxe7 {[%clk 0:01:51.1]}
11... Qxe7 {[%clk 0:02:56.9]} 12. b4 {[%clk 0:01:51.7]} 12... f5 {[%clk
0:02:55.9]} 13. Rc1 {[%clk 0:01:38.9]} 13... f4 {[%clk 0:02:53.2]} 14. Nd2
{[%clk 0:01:23.8]} 14... Nf6 {[%clk 0:02:46.9]} 15. c5 {[%clk 0:01:19.1]} 15...
g5 {[%clk 0:02:37.8]} 16. Nb5 {[%clk 0:01:12.4]} 16... dxc5 {[%clk 0:01:57.8]}
17. bxc5 {[%clk 0:01:09.4]} 17... a6 {[%clk 0:01:49]} 18. d6 {[%clk 0:01:08.4]}
18... cxd6 {[%clk 0:01:45.8]} 19. cxd6 {[%clk 0:01:08.2]} 19... Qd7 {[%clk
0:01:38.1]} 20. Nc7 {[%clk 0:01:07.9]} 20... Rb8 {[%clk 0:01:35.4]} 21. Nc4
{[%clk 0:01:05.9]} 21... Ne8 {[%clk 0:01:28.8]} 22. Nxe8 {[%clk 0:00:37.8]}
22... Qxe8 {[%clk 0:01:07.2]} 23. Nb6 {[%clk 0:00:36.4]} 23... Bd7 {[%clk
0:00:54.5]} 24. Nxd7 {[%clk 0:00:22.8]} 24... Qxd7 {[%clk 0:00:53.7]} 25. Rc7
{[%clk 0:00:23.3]} 25... Qd8 {[%clk 0:00:48.2]} 26. Qd5+ {[%clk 0:00:22.7]}
26... Kh8 {[%clk 0:00:45.4]} 27. Rfc1 {[%clk 0:00:22.5]} 27... Rf6 {[%clk
0:00:42.9]} 28. d7 {[%clk 0:00:19.8]} 28... Rc6 {[%clk 0:00:39.1]} 29. R1xc6
{[%clk 0:00:15.4]} 29... bxc6 {[%clk 0:00:39.1]} 30. Qxc6 {[%clk 0:00:11.8]}
30... Rb1+ {[%clk 0:00:08.7]} 31. Kh2 {[%clk 0:00:11.6]} 31... g4 {[%clk
0:00:05.6]} 32. Rc8 {[%clk 0:00:09.5]} 32... g3+ {[%clk 0:00:01.7]} 33. fxg3
{[%clk 0:00:09.7]} 33... fxg3+ {[%clk 0:00:01.7]} 34. Kxg3 {[%clk 0:00:10]} 1-0

[Event "*** SCC Grand Prix: Titled Tuesday Blitz"]
[Site "Chess.com"]
[Date "2020.09.29"]
[Round "6"]
[White "Ze-Pequeno"]
[Black "isainz"]
[Result "1-0"]
[WhiteElo "2252"]
[BlackElo "2020"]
[TimeControl "180+1"]
[EndTime "11:05:44 PDT"]
[Termination "Ze-Pequeno won on time"]

1. e4 {[%clk 0:03:00.9]} 1... c5 {[%clk 0:02:59.2]} 2. Nf3 {[%clk 0:02:59.6]}
2... Nc6 {[%clk 0:02:53.1]} 3. d4 {[%clk 0:02:59.5]} 3... cxd4 {[%clk
0:02:52.4]} 4. Nxd4 {[%clk 0:03:00.4]} 4... Nf6 {[%clk 0:02:52.3]} 5. Nc3 {[%clk
0:03:00.4]} 5... e5 {[%clk 0:02:52.5]} 6. Ndb5 {[%clk 0:03:00.3]} 6... d6 {[%clk
0:02:52.8]} 7. Bg5 {[%clk 0:03:00.4]} 7... a6 {[%clk 0:02:53.2]} 8. Na3 {[%clk
0:03:00.4]} 8... b5 {[%clk 0:02:53.3]} 9. Bxf6 {[%clk 0:03:00.4]} 9... gxf6
{[%clk 0:02:52.8]} 10. Nd5 {[%clk 0:03:01.3]} 10... f5 {[%clk 0:02:50.2]} 11. c3
{[%clk 0:03:01.2]} 11... Bg7 {[%clk 0:02:27.8]} 12. exf5 {[%clk 0:02:58.9]}
12... Bxf5 {[%clk 0:02:20.8]} 13. Nc2 {[%clk 0:02:58.7]} 13... Be6 {[%clk
0:02:17]} 14. Nce3 {[%clk 0:02:59]} 14... Ne7 {[%clk 0:02:13.7]} 15. Qf3 {[%clk
0:02:36.6]} 15... Nxd5 {[%clk 0:02:09.6]} 16. Nxd5 {[%clk 0:02:35.5]} 16... O-O
{[%clk 0:02:08.3]} 17. Rd1 {[%clk 0:02:31.7]} 17... f5 {[%clk 0:02:05]} 18. g3
{[%clk 0:02:27.6]} 18... Rc8 {[%clk 0:02:01.6]} 19. Bg2 {[%clk 0:02:26.6]} 19...
Rc5 {[%clk 0:01:58.5]} 20. Qe2 {[%clk 0:02:25.9]} 20... e4 {[%clk 0:01:53]} 21.
Nf4 {[%clk 0:02:24.3]} 21... Bxa2 {[%clk 0:01:45.9]} 22. Qd2 {[%clk 0:01:54.7]}
22... Rc6 {[%clk 0:01:40.3]} 23. O-O {[%clk 0:01:49.7]} 23... Bb3 {[%clk
0:01:37.4]} 24. Ra1 {[%clk 0:01:42.3]} 24... d5 {[%clk 0:01:33.4]} 25. Ra3
{[%clk 0:01:31.7]} 25... Bc4 {[%clk 0:01:28.3]} 26. Rfa1 {[%clk 0:01:30.5]}
26... b4 {[%clk 0:01:12.2]} 27. cxb4 {[%clk 0:01:26.5]} 27... d4 {[%clk
0:01:10.7]} 28. b3 {[%clk 0:01:15.8]} 28... Bb5 {[%clk 0:01:10.1]} 29. Rc1
{[%clk 0:01:07.9]} 29... Rxc1+ {[%clk 0:00:57.5]} 30. Qxc1 {[%clk 0:01:07.5]}
30... Qc8 {[%clk 0:00:55.7]} 31. Qd1 {[%clk 0:01:00.3]} 31... d3 {[%clk
0:00:52]} 32. Ra2 {[%clk 0:00:54.9]} 32... Qc6 {[%clk 0:00:42]} 33. Bh3 {[%clk
0:00:50.4]} 33... Bd4 {[%clk 0:00:34.6]} 34. Ng2 {[%clk 0:00:45.1]} 34... Qd5
{[%clk 0:00:22.4]} 35. Ne3 {[%clk 0:00:43.1]} 35... Qd6 {[%clk 0:00:18.2]} 36.
Nxf5 {[%clk 0:00:39]} 36... Rxf5 {[%clk 0:00:14.2]} 37. Bxf5 {[%clk 0:00:38.1]}
37... e3 {[%clk 0:00:11.8]} 38. Qg4+ {[%clk 0:00:31.9]} 38... Kh8 {[%clk
0:00:10.9]} 39. fxe3 {[%clk 0:00:31.6]} 39... Bxe3+ {[%clk 0:00:10.1]} 40. Kg2
{[%clk 0:00:31.5]} 40... Bc6+ {[%clk 0:00:09.9]} 41. Kh3 {[%clk 0:00:31.3]}
41... Qh6+ {[%clk 0:00:10.1]} 42. Qh4 {[%clk 0:00:30.9]} 42... Qxh4+ {[%clk
0:00:07.7]} 43. Kxh4 {[%clk 0:00:31]} 43... d2 {[%clk 0:00:07.8]} 44. Bg4 {[%clk
0:00:30.9]} 44... Bd5 {[%clk 0:00:06.2]} 45. Rxa6 {[%clk 0:00:29.7]} 45... Bxb3
{[%clk 0:00:05.9]} 46. Rd6 {[%clk 0:00:29.8]} 46... Bh6 {[%clk 0:00:01.4]} 47.
b5 {[%clk 0:00:29]} 1-0

[Event "*** SCC Grand Prix: Titled Tuesday Blitz"]
[Site "Chess.com"]
[Date "2020.09.29"]
[Round "6"]
[White "Bigfish1995"]
[Black "anon219"]
[Result "1-0"]
[WhiteElo "3104"]
[BlackElo "2748"]
[TimeControl "180+1"]
[EndTime "11:05:45 PDT"]
[Termination "Bigfish1995 won by checkmate"]

1. d4 {[%clk 0:03:00.9]} 1... Nf6 {[%clk 0:02:59.9]} 2. c4 {[%clk 0:03:01.2]}
2... e6 {[%clk 0:02:59.8]} 3. Nf3 {[%clk 0:03:01.5]} 3... d5 {[%clk 0:03:00]} 4.
Nc3 {[%clk 0:03:01.6]} 4... Bb4 {[%clk 0:03:00]} 5. Bg5 {[%clk 0:02:56]} 5...
dxc4 {[%clk 0:02:56]} 6. a3 {[%clk 0:02:51.8]} 6... Bxc3+ {[%clk 0:02:53.2]} 7.
bxc3 {[%clk 0:02:52.7]} 7... b5 {[%clk 0:02:41.2]} 8. Qb1 {[%clk 0:02:52.7]}
8... a6 {[%clk 0:02:29.4]} 9. a4 {[%clk 0:02:52.5]} 9... c6 {[%clk 0:02:26.6]}
10. e4 {[%clk 0:02:52.8]} 10... h6 {[%clk 0:02:26.4]} 11. Bh4 {[%clk 0:02:52.5]}
11... Nbd7 {[%clk 0:02:21.6]} 12. Be2 {[%clk 0:02:47.3]} 12... Bb7 {[%clk
0:02:15.6]} 13. O-O {[%clk 0:02:43.7]} 13... Qc8 {[%clk 0:02:02.8]} 14. Nd2
{[%clk 0:02:37.1]} 14... e5 {[%clk 0:01:48.3]} 15. dxe5 {[%clk 0:02:29.7]} 15...
Nxe5 {[%clk 0:01:47.9]} 16. f4 {[%clk 0:02:30.3]} 16... Ng6 {[%clk 0:01:39]} 17.
e5 {[%clk 0:02:17.8]} 17... Nxh4 {[%clk 0:01:27.2]} 18. exf6 {[%clk 0:02:13]}
18... gxf6 {[%clk 0:01:05.7]} 19. Ne4 {[%clk 0:02:12.2]} 19... Qd8 {[%clk
0:01:05]} 20. g3 {[%clk 0:01:45.3]} 20... f5 {[%clk 0:00:58.4]} 21. Rd1 {[%clk
0:01:41.1]} 21... Qb6+ {[%clk 0:00:52.1]} 22. Nf2 {[%clk 0:01:41.4]} 22... Rg8
{[%clk 0:00:43.3]} 23. Kf1 {[%clk 0:01:38.9]} 23... Ng6 {[%clk 0:00:15.2]} 24.
Bxc4 {[%clk 0:01:37.2]} 24... Qc5 {[%clk 0:00:12.8]} 25. Rd4 {[%clk 0:01:36.1]}
25... Kf8 {[%clk 0:00:12.2]} 26. Qb3 {[%clk 0:01:26]} 26... Rg7 {[%clk
0:00:07.5]} 27. Re1 {[%clk 0:01:22.5]} 27... Kg8 {[%clk 0:00:05.7]} 28. Nd3
{[%clk 0:01:01.4]} 28... Qf8 {[%clk 0:00:05.3]} 29. Nf2 {[%clk 0:00:43.6]} 29...
c5 {[%clk 0:00:04.4]} 30. Rd2 {[%clk 0:00:43.3]} 30... Bc6 {[%clk 0:00:03.1]}
31. axb5 {[%clk 0:00:42.1]} 31... axb5 {[%clk 0:00:04]} 32. Bxb5 {[%clk
0:00:42.9]} 32... Rb8 {[%clk 0:00:02.2]} 33. c4 {[%clk 0:00:43.4]} 33... Bxb5
{[%clk 0:00:02.1]} 34. cxb5 {[%clk 0:00:44.3]} 34... Qc8 {[%clk 0:00:01.2]} 35.
Qc4 {[%clk 0:00:44.3]} 35... Nf8 {[%clk 0:00:01.5]} 36. Re5 {[%clk 0:00:42.2]}
36... Ne6 {[%clk 0:00:02.4]} 37. Rxf5 {[%clk 0:00:39.5]} 37... Qb7 {[%clk
0:00:02.8]} 38. Ne4 {[%clk 0:00:37]} 38... Qxb5 {[%clk 0:00:02.4]} 39. Nf6+
{[%clk 0:00:33.6]} 39... Kf8 {[%clk 0:00:02.3]} 40. Qxb5 {[%clk 0:00:30.1]}
40... Rxb5 {[%clk 0:00:03.2]} 41. Rd7 {[%clk 0:00:30.5]} 41... Rb1+ {[%clk
0:00:02.6]} 42. Kg2 {[%clk 0:00:29.1]} 42... Rg6 {[%clk 0:00:02.6]} 43. Nh7+
{[%clk 0:00:27.9]} 43... Ke8 {[%clk 0:00:03.1]} 44. Rfxf7 {[%clk 0:00:26.3]}
44... Rb2+ {[%clk 0:00:03.4]} 45. Kh3 {[%clk 0:00:24.5]} 45... Nd4 {[%clk
0:00:03.7]} 46. Rfe7# {[%clk 0:00:24.5]} 1-0

[Event "*** SCC Grand Prix: Titled Tuesday Blitz"]
[Site "Chess.com"]
[Date "2020.09.29"]
[Round "6"]
[White "ErikRonka"]
[Black "dpopadic"]
[Result "1-0"]
[WhiteElo "2470"]
[BlackElo "2325"]
[TimeControl "180+1"]
[EndTime "11:05:46 PDT"]
[Termination "ErikRonka won on time"]

1. e4 {[%clk 0:03:00.9]} 1... c5 {[%clk 0:02:59.1]} 2. a3 {[%clk 0:03:00.7]}
2... g6 {[%clk 0:02:50]} 3. b4 {[%clk 0:03:00.7]} 3... Bg7 {[%clk 0:02:49.9]} 4.
Nc3 {[%clk 0:03:01.3]} 4... d6 {[%clk 0:02:46.6]} 5. Rb1 {[%clk 0:03:00.9]} 5...
cxb4 {[%clk 0:02:45.5]} 6. axb4 {[%clk 0:03:00]} 6... Nf6 {[%clk 0:02:45]} 7. g3
{[%clk 0:02:59.7]} 7... O-O {[%clk 0:02:44.4]} 8. Bg2 {[%clk 0:02:59.7]} 8...
Nc6 {[%clk 0:02:44.5]} 9. Nge2 {[%clk 0:02:59.2]} 9... Be6 {[%clk 0:02:28.1]}
10. Nd5 {[%clk 0:02:35.7]} 10... a5 {[%clk 0:01:58.6]} 11. bxa5 {[%clk
0:02:28.9]} 11... Nxa5 {[%clk 0:01:40]} 12. O-O {[%clk 0:02:19.7]} 12... Rb8
{[%clk 0:01:23.1]} 13. d3 {[%clk 0:02:12]} 13... Nc6 {[%clk 0:01:20.8]} 14. c4
{[%clk 0:01:52]} 14... Bd7 {[%clk 0:01:00.1]} 15. Be3 {[%clk 0:01:49.8]} 15...
e6 {[%clk 0:00:55.9]} 16. Nb6 {[%clk 0:01:42.7]} 16... Ng4 {[%clk 0:00:51.6]}
17. Bd2 {[%clk 0:01:27.2]} 17... Nce5 {[%clk 0:00:39.3]} 18. Qb3 {[%clk
0:00:59.3]} 18... Qc7 {[%clk 0:00:34.1]} 19. h3 {[%clk 0:00:54.8]} 19... Nf6
{[%clk 0:00:33.3]} 20. d4 {[%clk 0:00:47.2]} 20... Nc6 {[%clk 0:00:32.3]} 21. d5
{[%clk 0:00:41.2]} 21... exd5 {[%clk 0:00:31.8]} 22. cxd5 {[%clk 0:00:40.7]}
22... Ne7 {[%clk 0:00:20.5]} 23. Rfc1 {[%clk 0:00:39.9]} 23... Qd8 {[%clk
0:00:20.5]} 24. Ba5 {[%clk 0:00:39.2]} 24... Qe8 {[%clk 0:00:19]} 25. Nxd7
{[%clk 0:00:34.6]} 25... Nxd7 {[%clk 0:00:16]} 26. Bc7 {[%clk 0:00:33.3]} 26...
Nc5 {[%clk 0:00:15.9]} 27. Rxc5 {[%clk 0:00:26.7]} 27... dxc5 {[%clk 0:00:15.1]}
28. Bxb8 {[%clk 0:00:27]} 28... Qxb8 {[%clk 0:00:14.9]} 29. Qxb7 {[%clk
0:00:27.5]} 29... Qe5 {[%clk 0:00:14.3]} 30. f4 {[%clk 0:00:21.9]} 30... Qf6
{[%clk 0:00:12.5]} 31. e5 {[%clk 0:00:21.4]} 31... Qf5 {[%clk 0:00:12.6]} 32.
Qxe7 {[%clk 0:00:20.5]} 32... Qxb1+ {[%clk 0:00:11.9]} 33. Kf2 {[%clk
0:00:19.8]} 33... Qd3 {[%clk 0:00:10.4]} 34. d6 {[%clk 0:00:19.6]} 34... c4
{[%clk 0:00:09.7]} 35. Qc7 {[%clk 0:00:20.2]} 35... g5 {[%clk 0:00:07.6]} 36.
Qc5 {[%clk 0:00:19.4]} 36... gxf4 {[%clk 0:00:05.6]} 37. gxf4 {[%clk 0:00:20.3]}
37... Bh6 {[%clk 0:00:03.9]} 38. Qe3 {[%clk 0:00:17.5]} 38... Qxe3+ {[%clk
0:00:03.2]} 39. Kxe3 {[%clk 0:00:18.4]} 39... Rc8 {[%clk 0:00:02.8]} 40. Nc3
{[%clk 0:00:18]} 40... Kf8 {[%clk 0:00:02.6]} 41. Ke4 {[%clk 0:00:18.4]} 41...
Bg7 {[%clk 0:00:01.7]} 42. f5 {[%clk 0:00:18.5]} 1-0

[Event "*** SCC Grand Prix: Titled Tuesday Blitz"]
[Site "Chess.com"]
[Date "2020.09.29"]
[Round "6"]
[White "azikom"]
[Black "mjray79"]
[Result "1-0"]
[WhiteElo "2636"]
[BlackElo "2419"]
[TimeControl "180+1"]
[EndTime "11:05:47 PDT"]
[Termination "azikom won by checkmate"]

1. c4 {[%clk 0:02:45.1]} 1... Nf6 {[%clk 0:02:59.5]} 2. Nc3 {[%clk 0:02:44.7]}
2... g6 {[%clk 0:03:00]} 3. d4 {[%clk 0:02:43.8]} 3... Bg7 {[%clk 0:03:00.2]} 4.
e4 {[%clk 0:02:44.4]} 4... d6 {[%clk 0:03:00.6]} 5. f3 {[%clk 0:02:44.8]} 5...
O-O {[%clk 0:03:00]} 6. Be3 {[%clk 0:02:45.4]} 6... c5 {[%clk 0:03:00.6]} 7.
Nge2 {[%clk 0:02:44.8]} 7... Nc6 {[%clk 0:02:59.5]} 8. Qd2 {[%clk 0:02:44.6]}
8... cxd4 {[%clk 0:02:53.7]} 9. Nxd4 {[%clk 0:02:44.2]} 9... Ne5 {[%clk
0:02:53.5]} 10. Be2 {[%clk 0:02:44.7]} 10... Bd7 {[%clk 0:02:53.2]} 11. O-O
{[%clk 0:02:44.7]} 11... Rc8 {[%clk 0:02:52.6]} 12. b3 {[%clk 0:02:44.6]} 12...
a6 {[%clk 0:02:52.5]} 13. Rac1 {[%clk 0:02:44.6]} 13... Rb8 {[%clk 0:02:51.3]}
14. Rfd1 {[%clk 0:02:44]} 14... Nc6 {[%clk 0:02:49.7]} 15. Bf1 {[%clk
0:02:42.3]} 15... Ne8 {[%clk 0:02:49.7]} 16. c5 {[%clk 0:02:27.5]} 16... Ne5
{[%clk 0:02:15.7]} 17. cxd6 {[%clk 0:02:22.7]} 17... Nxd6 {[%clk 0:02:16.6]} 18.
Nd5 {[%clk 0:02:12.4]} 18... b5 {[%clk 0:02:08.7]} 19. Bg5 {[%clk 0:02:07.7]}
19... f6 {[%clk 0:02:07.2]} 20. Bf4 {[%clk 0:02:02.4]} 20... Nef7 {[%clk
0:01:52.6]} 21. Bg3 {[%clk 0:02:00.3]} 21... e5 {[%clk 0:01:51.3]} 22. Nc2
{[%clk 0:01:57.6]} 22... a5 {[%clk 0:01:47.3]} 23. Nce3 {[%clk 0:01:56.9]} 23...
f5 {[%clk 0:01:45.5]} 24. exf5 {[%clk 0:01:44.3]} 24... gxf5 {[%clk 0:01:46.4]}
25. Bf2 {[%clk 0:01:44.6]} 25... Be6 {[%clk 0:01:34.8]} 26. Nc7 {[%clk
0:01:42.8]} 26... Bd7 {[%clk 0:01:29.7]} 27. Qxa5 {[%clk 0:01:39.4]} 27... Kh8
{[%clk 0:01:20.4]} 28. Qb4 {[%clk 0:01:35.9]} 28... Qf6 {[%clk 0:01:18.3]} 29.
Na6 {[%clk 0:01:22.3]} 29... Ra8 {[%clk 0:01:16.3]} 30. Nc5 {[%clk 0:01:21.5]}
30... Bc6 {[%clk 0:01:12.9]} 31. Nd5 {[%clk 0:01:15.9]} 31... Bxd5 {[%clk
0:01:12.1]} 32. Rxd5 {[%clk 0:01:15.2]} 32... Rxa2 {[%clk 0:01:09.2]} 33. Rcd1
{[%clk 0:01:14.2]} 33... Rd8 {[%clk 0:01:01.4]} 34. Qe1 {[%clk 0:01:10.9]} 34...
Bf8 {[%clk 0:00:53.7]} 35. b4 {[%clk 0:01:07.9]} 35... e4 {[%clk 0:00:42.6]} 36.
Bd4 {[%clk 0:01:03.5]} 36... Bg7 {[%clk 0:00:36.5]} 37. Bxf6 {[%clk 0:01:02.5]}
37... Bxf6 {[%clk 0:00:37.4]} 38. fxe4 {[%clk 0:01:02.4]} 38... fxe4 {[%clk
0:00:36.5]} 39. Nxe4 {[%clk 0:01:00.2]} 39... Nxe4 {[%clk 0:00:36.3]} 40. Rxd8+
{[%clk 0:00:59.9]} 40... Bxd8 {[%clk 0:00:34.7]} 41. Qxe4 {[%clk 0:01:00.3]}
41... Bb6+ {[%clk 0:00:35.1]} 42. Kh1 {[%clk 0:01:00.7]} 42... Ng5 {[%clk
0:00:35.1]} 43. Qe8+ {[%clk 0:00:56.2]} 43... Kg7 {[%clk 0:00:34.6]} 44. Qe7+
{[%clk 0:00:54.4]} 44... Kh6 {[%clk 0:00:32]} 45. Qf6+ {[%clk 0:00:53.8]} 45...
Kh5 {[%clk 0:00:30.8]} 46. Qxb6 {[%clk 0:00:53.5]} 46... h6 {[%clk 0:00:28.9]}
47. Qxb5 {[%clk 0:00:52.3]} 47... Kg4 {[%clk 0:00:24.6]} 48. Qc4+ {[%clk
0:00:51.1]} 48... Kh5 {[%clk 0:00:24.1]} 49. Qxa2 {[%clk 0:00:50.5]} 49... Kh4
{[%clk 0:00:24.1]} 50. b5 {[%clk 0:00:48.5]} 50... h5 {[%clk 0:00:23.8]} 51. b6
{[%clk 0:00:47]} 51... Kg4 {[%clk 0:00:23]} 52. b7 {[%clk 0:00:46.6]} 52... Nf3
{[%clk 0:00:22.1]} 53. gxf3+ {[%clk 0:00:46.1]} 53... Kh4 {[%clk 0:00:22.1]} 54.
Qf2+ {[%clk 0:00:46.1]} 54... Kg5 {[%clk 0:00:22.1]} 55. f4+ {[%clk 0:00:46.1]}
55... Kg4 {[%clk 0:00:21.7]} 56. Be2+ {[%clk 0:00:44.4]} 56... Kh3 {[%clk
0:00:21.7]} 57. Qg3# {[%clk 0:00:43.6]} 1-0

[Event "*** SCC Grand Prix: Titled Tuesday Blitz"]
[Site "Chess.com"]
[Date "2020.09.29"]
[Round "6"]
[White "ChessArchitect64"]
[Black "chesslh19"]
[Result "1-0"]
[WhiteElo "1995"]
[BlackElo "2173"]
[TimeControl "180+1"]
[EndTime "11:05:47 PDT"]
[Termination "ChessArchitect64 won on time"]

1. e4 {[%clk 0:02:50.1]} 1... e5 {[%clk 0:02:55.7]} 2. Nf3 {[%clk 0:02:43.9]}
2... Nf6 {[%clk 0:02:55.3]} 3. Nxe5 {[%clk 0:02:43.2]} 3... d6 {[%clk
0:02:53.9]} 4. Nf3 {[%clk 0:02:43.2]} 4... Nxe4 {[%clk 0:02:54]} 5. Nc3 {[%clk
0:02:43.6]} 5... Nxc3 {[%clk 0:02:54.4]} 6. bxc3 {[%clk 0:02:43]} 6... Be7
{[%clk 0:02:55.3]} 7. Be2 {[%clk 0:02:43.2]} 7... O-O {[%clk 0:02:53.3]} 8. O-O
{[%clk 0:02:43.5]} 8... d5 {[%clk 0:02:50.2]} 9. d4 {[%clk 0:02:43.5]} 9... Bf5
{[%clk 0:02:47.7]} 10. Be3 {[%clk 0:02:43]} 10... c6 {[%clk 0:02:47.3]} 11. Bd3
{[%clk 0:02:43.1]} 11... Bxd3 {[%clk 0:02:40.4]} 12. cxd3 {[%clk 0:02:44]} 12...
Nd7 {[%clk 0:02:40.5]} 13. Rb1 {[%clk 0:02:44]} 13... b5 {[%clk 0:02:35.7]} 14.
a4 {[%clk 0:02:41.7]} 14... a6 {[%clk 0:02:35.7]} 15. Qc2 {[%clk 0:02:39.3]}
15... Bd6 {[%clk 0:02:23]} 16. c4 {[%clk 0:02:31.7]} 16... Rb8 {[%clk
0:01:22.3]} 17. axb5 {[%clk 0:02:22.8]} 17... axb5 {[%clk 0:01:21.7]} 18. cxb5
{[%clk 0:02:22.6]} 18... cxb5 {[%clk 0:01:17.2]} 19. Qc6 {[%clk 0:02:21.4]}
19... Nf6 {[%clk 0:01:13.5]} 20. Rxb5 {[%clk 0:02:20.5]} 20... Rxb5 {[%clk
0:00:57]} 21. Qxb5 {[%clk 0:02:17.6]} 21... Qd7 {[%clk 0:00:55.3]} 22. Qxd7
{[%clk 0:02:15.4]} 22... Nxd7 {[%clk 0:00:56.2]} 23. Rc1 {[%clk 0:02:15.1]}
23... Nf6 {[%clk 0:00:43.1]} 24. Rc6 {[%clk 0:02:10]} 24... Ba3 {[%clk
0:00:27.8]} 25. Bf4 {[%clk 0:01:56.3]} 25... h6 {[%clk 0:00:26.7]} 26. Be5
{[%clk 0:01:50.9]} 26... Ng4 {[%clk 0:00:19.6]} 27. h3 {[%clk 0:01:45.5]} 27...
Nxe5 {[%clk 0:00:19.7]} 28. dxe5 {[%clk 0:01:42.3]} 28... Bb2 {[%clk 0:00:14.4]}
29. Rd6 {[%clk 0:01:39.3]} 29... d4 {[%clk 0:00:07.5]} 30. Nxd4 {[%clk
0:01:39.1]} 30... Re8 {[%clk 0:00:04.3]} 31. Nc6 {[%clk 0:01:38.9]} 31... Bxe5
{[%clk 0:00:03]} 32. Nxe5 {[%clk 0:01:38.3]} 32... Rxe5 {[%clk 0:00:03.9]} 33.
d4 {[%clk 0:01:38.5]} 33... Re1+ {[%clk 0:00:04]} 34. Kh2 {[%clk 0:01:38.6]}
34... Rd1 {[%clk 0:00:04.9]} 35. Kg3 {[%clk 0:01:38.7]} 35... g6 {[%clk
0:00:04.7]} 36. Rd8+ {[%clk 0:01:39]} 36... Kg7 {[%clk 0:00:04.9]} 37. d5 {[%clk
0:01:39.5]} 37... Kf6 {[%clk 0:00:04.5]} 38. d6 {[%clk 0:01:39.7]} 38... Ke6
{[%clk 0:00:04.3]} 39. Re8+ {[%clk 0:01:38.8]} 39... Kf6 {[%clk 0:00:03.9]} 40.
Rd8 {[%clk 0:01:38.6]} 40... Ke6 {[%clk 0:00:04.2]} 41. Rh8 {[%clk 0:01:38.6]}
41... Rxd6 {[%clk 0:00:03.4]} 42. Rxh6 {[%clk 0:01:38.6]} 42... Kf6 {[%clk
0:00:03.9]} 43. Rh8 {[%clk 0:01:38.1]} 43... Kg7 {[%clk 0:00:04.3]} 44. Rb8
{[%clk 0:01:37.4]} 44... Rd3+ {[%clk 0:00:04.4]} 45. f3 {[%clk 0:01:37.7]} 45...
Rd4 {[%clk 0:00:04.7]} 46. Rb7 {[%clk 0:01:37.2]} 46... Ra4 {[%clk 0:00:04.7]}
47. h4 {[%clk 0:01:36.3]} 47... Rc4 {[%clk 0:00:04.4]} 48. Rb5 {[%clk
0:01:36.3]} 48... Ra4 {[%clk 0:00:04.5]} 49. f4 {[%clk 0:01:36.6]} 49... Rc4
{[%clk 0:00:04.2]} 50. Kg4 {[%clk 0:01:36.5]} 50... Rc2 {[%clk 0:00:04.3]} 51.
g3 {[%clk 0:01:36.5]} 51... Rc1 {[%clk 0:00:04.6]} 52. h5 {[%clk 0:01:34.4]}
52... Rg1 {[%clk 0:00:04]} 53. hxg6 {[%clk 0:01:34.3]} 53... fxg6 {[%clk
0:00:04.9]} 54. Rb7+ {[%clk 0:01:34]} 54... Kf6 {[%clk 0:00:04.9]} 55. Rb6+
{[%clk 0:01:33.9]} 55... Kg7 {[%clk 0:00:05.1]} 56. Kf3 {[%clk 0:01:33.2]} 56...
Kf7 {[%clk 0:00:05.2]} 57. g4 {[%clk 0:01:33.2]} 57... Rf1+ {[%clk 0:00:04.8]}
58. Kg3 {[%clk 0:01:32.7]} 58... Rg1+ {[%clk 0:00:05]} 59. Kh4 {[%clk
0:01:32.6]} 59... Rf1 {[%clk 0:00:05.1]} 60. Kg5 {[%clk 0:01:31.6]} 60... Rf2
{[%clk 0:00:03.9]} 61. Rxg6 {[%clk 0:01:31.3]} 61... Rxf4 {[%clk 0:00:03.1]} 62.
Rb6 {[%clk 0:01:31.4]} 62... Rf1 {[%clk 0:00:03]} 63. Rb7+ {[%clk 0:01:31.7]}
63... Kf8 {[%clk 0:00:01.8]} 64. Kg6 {[%clk 0:01:31.6]} 64... Ke8 {[%clk
0:00:01.7]} 65. g5 {[%clk 0:01:31.3]} 65... Rf2 {[%clk 0:00:01.4]} 66. Rb8+
{[%clk 0:01:31.3]} 66... Ke7 {[%clk 0:00:01.4]} 67. Kg7 {[%clk 0:01:31.7]} 67...
Rf1 {[%clk 0:00:01.4]} 68. g6 {[%clk 0:01:32]} 1-0